bitfinex/quotes_BTCUSD_20260125
["timestamp","ask_amount","ask_price","bid_price","bid_amount"]
[1769355182967,0.01126557,88766.0,88750.0,1.01556241]
[1769355184046,0.0112657,88765.0,88750.0,1.01556241]
[1769355185281,0.01126557,88766.0,88750.0,1.01556241]
[1769355185511,0.01126557,88766.0,88750.0,1.01500382]
[1769355185967,0.0112657,88765.0,88750.0,1.01500382]
[1769355187450,0.01226557,88766.0,88750.0,1.01500382]
[1769355187799,0.01126557,88766.0,88750.0,1.01484409]
[1769355187995,0.01126557,88766.0,88750.0,1.0117181]
[1769355188818,0.0112657,88765.0,88750.0,1.0117181]
[1769355189162,0.0112657,88765.0,88750.0,0.89829546]
[1769355190042,0.01126557,88766.0,88750.0,0.89829546]
[1769355190246,0.38533701,88767.0,88750.0,0.89829546]
[1769355190423,0.38533701,88767.0,88750.0,0.88921269]
[1769355190622,0.001,88766.0,88750.0,0.88921269]
[1769355191060,0.01226557,88766.0,88750.0,0.88921269]
[1769355191257,0.01126557,88766.0,88750.0,0.88921269]
[1769355191509,0.38633701,88767.0,88750.0,0.88921269]
[1769355191863,0.37507157,88767.0,88750.0,0.88921269]
[1769355192060,0.37407157,88767.0,88750.0,0.88921269]
[1769355193059,0.38533701,88767.0,88750.0,0.88921269]
[1769355193397,0.37407157,88767.0,88750.0,0.88921269]
[1769355194761,0.33308804,88770.0,88750.0,0.31100229]
[1769355194959,0.33308804,88770.0,88754.0,0.44214689]
[1769355194960,0.187777,88769.0,88754.0,0.44214689]
[1769355195234,0.16742,88769.0,88755.0,0.56507403]
[1769355195870,0.132099,88767.0,88755.0,0.451658]
[1769355196071,0.132099,88767.0,88755.0,0.44444221]
[1769355196474,0.01126544,88767.0,88755.0,0.44444221]
[1769355196681,0.152485,88767.0,88755.0,0.44444221]
[1769355196882,0.120519,88768.0,88755.0,0.44444221]
[1769355197265,0.19045119,88769.0,88755.0,0.44444221]
[1769355197460,0.120519,88768.0,88755.0,0.44444221]
[1769355198405,0.231898,88769.0,88755.0,0.44444221]
[1769355198611,0.01126506,88770.0,88755.0,0.44444221]
[1769355199014,0.216154,88769.0,88755.0,0.44444221]
[1769355199855,0.01126519,88769.0,88755.0,0.44444221]
[1769355200053,0.243496,88768.0,88755.0,0.44444221]
[1769355200257,0.293789,88769.0,88755.0,0.44444221]
[1769355201352,0.367698,88770.0,88755.0,0.44444221]
[1769355201775,0.354896,88770.0,88755.0,0.44444221]
[1769355202128,0.298931,88769.0,88755.0,0.44444221]
[1769355202480,0.279299,88769.0,88755.0,0.44444221]
[1769355203218,0.353552,88770.0,88755.0,0.44444221]
[1769355203376,0.31101106,88770.0,88755.0,0.44444221]
[1769355203702,0.274123,88769.0,88755.0,0.44444221]
[1769355203871,0.318496,88769.0,88755.0,0.44444221]
[1769355204054,0.282503,88769.0,88755.0,0.44444221]
[1769355204259,0.308126,88770.0,88755.0,0.44444221]
[1769355205354,0.325874,88770.0,88755.0,0.44444221]
[1769355205789,0.303309,88769.0,88755.0,0.44444221]
[1769355205992,0.184356,88770.0,88755.0,0.44444221]
[1769355206778,0.13835668,88773.0,88757.0,0.56542231]
[1769355206996,0.01126468,88773.0,88757.0,0.56542231]
[1769355207384,0.102355,88771.0,88757.0,0.56542231]
[1769355207553,0.18482,88771.0,88757.0,0.56542231]
[1769355207704,0.15962,88770.0,88757.0,0.56542231]
[1769355207903,0.01126481,88772.0,88757.0,0.56542231]
[1769355207904,0.20635494,88771.0,88757.0,0.56542231]
[1769355208106,0.201316,88770.0,88757.0,0.56542231]
[1769355208343,0.19509,88771.0,88757.0,0.56542231]
[1769355208547,0.20635494,88771.0,88757.0,0.56542231]
[1769355208759,0.212102,88770.0,88757.0,0.56542231]
[1769355208941,0.16739,88770.0,88757.0,0.56542231]
[1769355210071,0.20403,88770.0,88757.0,0.56542231]
[1769355210388,0.01126481,88772.0,88757.0,0.56542231]
[1769355210523,0.102913,88771.0,88757.0,0.56542231]
[1769355210725,0.01126468,88773.0,88757.0,0.56542231]
[1769355211040,0.23937,88771.0,88757.0,0.56542231]
[1769355211240,0.23998181,88772.0,88757.0,0.56542231]
[1769355211447,0.242181,88771.0,88757.0,0.56542231]
[1769355211984,0.230969,88771.0,88757.0,0.56542231]
[1769355212733,0.24223394,88771.0,88757.0,0.56542231]
[1769355212935,0.230969,88771.0,88757.0,0.56542231]
[1769355213170,0.204727,88770.0,88757.0,0.56542231]
[1769355213553,0.168146,88770.0,88757.0,0.56542231]
[1769355213963,0.03157349,88769.0,88757.0,0.56542231]
[1769355214172,0.202668,88771.0,88757.0,0.56542231]
[1769355216076,0.200164,88770.0,88757.0,0.56542231]
[1769355216289,0.21142906,88770.0,88757.0,0.56542231]
[1769355216499,0.200164,88770.0,88757.0,0.56542231]
[1769355217823,0.194388,88771.0,88757.0,0.56542231]
[1769355218252,0.201474,88770.0,88757.0,0.56542231]
[1769355218464,0.227716,88771.0,88757.0,0.56542231]
[1769355218670,0.23898094,88771.0,88757.0,0.56542231]
[1769355218874,0.01126506,88770.0,88756.0,0.44214689]
[1769355219076,0.200347,88770.0,88756.0,0.44214689]
[1769355219274,0.01126506,88770.0,88756.0,0.44214689]
[1769355219913,0.01126519,88769.0,88756.0,0.44214689]
[1769355220126,0.01126544,88767.0,88756.0,0.44214689]
[1769355220352,0.0112657,88765.0,88751.0,1.00470712]
[1769355220567,0.01126595,88763.0,88750.0,8.531e-05]
[1769355220773,0.01126608,88762.0,88750.0,8.531e-05]
[1769355220917,0.01126722,88753.0,88750.0,8.531e-05]
[1769355221238,0.01126722,88753.0,88742.0,0.000149]
[1769355221239,0.01126735,88752.0,88742.0,0.000149]
[1769355221444,0.01126747,88751.0,88742.0,0.00027166]
[1769355221676,0.41497672,88754.0,88742.0,0.00027166]
[1769355222261,0.40370963,88754.0,88742.0,0.00027166]
[1769355222505,0.01126722,88753.0,88742.0,0.00027166]
[1769355222669,0.01126735,88752.0,88742.0,0.00027166]
[1769355223399,0.01126722,88753.0,88742.0,0.00027166]
[1769355223577,0.01126735,88752.0,88742.0,0.00027166]
[1769355223921,0.01126747,88751.0,88742.0,0.00027166]
[1769355224255,0.40370963,88754.0,88742.0,0.00027166]
[1769355224461,0.01126735,88752.0,88742.0,0.00027166]
[1769355225042,0.01126747,88751.0,88742.0,0.00027166]
[1769355225640,0.0112676,88750.0,88742.0,0.00027166]
[1769355225777,0.01126747,88751.0,88742.0,0.00027166]
[1769355225974,0.01126735,88752.0,88742.0,0.00027166]
[1769355226574,0.01126747,88751.0,88742.0,0.00027166]
[1769355228235,0.0112676,88750.0,88742.0,0.00027166]
[1769355228567,0.01126735,88752.0,88742.0,0.00027166]
[1769355228768,0.07755192,88751.0,88742.0,0.00027166]
[1769355228977,0.08881939,88751.0,88742.0,0.00027166]
[1769355229736,0.0112676,88750.0,88742.0,0.00027166]
[1769355230152,0.07755192,88751.0,88742.0,0.00027166]
[1769355230707,0.27162298,88754.0,88742.0,0.00027166]
[1769355230935,0.27162298,88754.0,88742.0,0.53741685]
[1769355230936,0.28289007,88754.0,88742.0,0.53741685]
[1769355231510,0.27162298,88754.0,88742.0,0.53741685]
[1769355232340,0.01126646,88759.0,88742.0,0.53741685]
[1769355232592,0.01126659,88758.0,88742.0,0.53741685]
[1769355233067,0.41497596,88760.0,88743.0,0.41001547]
[1769355233273,0.01126646,88759.0,88745.0,0.59469165]
[1769355233431,0.01126671,88757.0,88746.0,0.53769737]
[1769355233635,0.01126671,88757.0,88746.0,0.48126304]
[1769355233966,0.01126659,88758.0,88746.0,0.31196005]
[1769355234176,0.01126659,88758.0,88746.0,0.25552572]
[1769355234475,0.01126659,88758.0,88746.0,0.14265706]
[1769355234647,0.01126659,88758.0,88746.0,0.08622273]
[1769355234855,0.01126659,88758.0,88746.0,0.0317884]
[1769355235474,0.01126659,88758.0,88745.0,0.41001547]
[1769355235833,0.01126684,88756.0,88745.0,0.41001547]
[1769355236031,0.01126697,88755.0,88745.0,0.41001547]
[1769355236781,0.01126709,88754.0,88745.0,0.4098557]
[1769355236993,0.06760118,88756.0,88745.0,0.4098557]
[1769355237243,0.06760118,88756.0,88745.0,0.40969595]
[1769355237244,0.01126709,88754.0,88745.0,0.40969595]
[1769355237436,0.01126659,88758.0,88745.0,0.4095362]
[1769355237872,0.01126697,88755.0,88745.0,0.4095362]
[1769355238083,0.05633465,88756.0,88745.0,0.4095362]
[1769355238300,0.01126697,88755.0,88745.0,0.4095362]
[1769355238722,0.01126684,88756.0,88745.0,0.4095362]
[1769355238872,0.01126697,88755.0,88745.0,0.4095362]
[1769355239283,0.01126684,88756.0,88745.0,0.4095362]
[1769355239485,0.01126697,88755.0,88745.0,0.4095362]
[1769355240032,0.01126697,88755.0,88745.0,0.40914185]
[1769355240665,0.06760187,88755.0,88745.0,0.40914185]
[1769355240877,0.01126709,88754.0,88741.0,0.59469165]
[1769355241515,0.06760347,88753.0,88741.0,0.59469165]
[1769355241719,0.01126722,88753.0,88741.0,0.59469165]
[1769355242347,0.01126735,88752.0,88741.0,0.59469165]
[1769355242792,0.01126722,88753.0,88741.0,0.59469165]
[1769355243002,0.01126735,88752.0,88741.0,0.59469165]
[1769355243232,0.01126722,88753.0,88741.0,0.59469165]
[1769355243651,0.01126735,88752.0,88741.0,0.59469165]
[1769355243870,0.01126722,88753.0,88741.0,0.59469165]
[1769355245102,0.01126735,88752.0,88741.0,0.59469165]
[1769355245465,0.01126722,88753.0,88741.0,0.59469165]
[1769355245996,0.01126735,88752.0,88741.0,0.59469165]
[1769355246375,0.01126722,88753.0,88741.0,0.59469165]
[1769355246782,0.01126735,88752.0,88741.0,0.59469165]
[1769355247161,0.01126735,88752.0,88740.0,0.41001547]
[1769355247356,0.01126747,88751.0,88740.0,0.41001547]
[1769355247597,0.01126735,88752.0,88740.0,0.41001547]
[1769355247997,0.01126747,88751.0,88740.0,0.41001547]
[1769355248199,0.01126836,88744.0,88735.0,0.61085646]
[1769355248378,0.01126798,88747.0,88735.0,1.02200705]
[1769355248954,0.01126798,88747.0,88736.0,0.41115059]
[1769355249372,0.06760544,88751.0,88736.0,0.41115059]
[1769355249588,0.01126747,88751.0,88736.0,0.41115059]
[1769355249805,0.0112676,88750.0,88737.0,0.41115059]
[1769355251592,0.01126798,88747.0,88737.0,0.41115059]
[1769355251797,0.01126824,88745.0,88733.0,0.000149]
[1769355252253,0.01126811,88746.0,88733.0,0.000149]
[1769355253222,0.001,88745.0,88733.0,0.000149]
[1769355253365,0.01226824,88745.0,88733.0,0.000149]
[1769355253766,0.001,88745.0,88733.0,0.000149]
[1769355254240,0.01126785,88748.0,88733.0,0.000149]
[1769355254405,0.01126785,88748.0,88731.0,0.41115059]
[1769355254406,0.01126798,88747.0,88731.0,0.61085646]
[1769355254610,0.001,88746.0,88732.0,0.43091545]
[1769355255133,0.01126798,88747.0,88732.0,0.43091545]
[1769355255340,0.01126747,88751.0,88732.0,0.43091545]
[1769355255499,0.001,88748.0,88733.0,0.60107383]
[1769355255698,0.001,88748.0,88734.0,0.43091545]
[1769355255951,0.01126773,88749.0,88734.0,0.43091545]
[1769355256187,0.001,88746.0,88734.0,0.43091545]
[1769355257327,0.01126798,88747.0,88734.0,0.43091545]
[1769355258504,0.01226798,88747.0,88734.0,0.43091545]
[1769355259044,0.01126798,88747.0,88734.0,0.43091545]
[1769355259264,0.01226798,88747.0,88734.0,0.43091545]
[1769355259872,0.001,88747.0,88734.0,0.43091545]
[1769355260293,0.001,88747.0,88734.0,0.4307557]
[1769355260494,0.01126773,88749.0,88734.0,0.42342545]
[1769355261061,0.001,88747.0,88734.0,0.42342545]
[1769355262328,0.61984063,88750.0,88734.0,0.42342545]
[1769355262530,0.001,88749.0,88734.0,0.42342545]
[1769355262974,0.001,88749.0,88735.0,0.43091545]
[1769355263941,0.60857303,88750.0,88735.0,0.43091545]
[1769355264137,0.61984063,88750.0,88735.0,0.43091545]
[1769355264541,0.01126773,88749.0,88735.0,0.4292392]
[1769355264744,0.01126785,88748.0,88735.0,0.42267015]
[1769355264932,0.01126798,88747.0,88735.0,0.42267015]
[1769355265132,0.01126811,88746.0,88735.0,0.42267015]
[1769355266211,0.01126824,88745.0,88735.0,0.42267015]
[1769355266335,0.01126811,88746.0,88735.0,0.42267015]
[1769355266540,0.01126849,88743.0,88728.0,0.43091545]
[1769355266775,0.01126849,88743.0,88729.0,0.61771918]
[1769355267168,0.01126849,88743.0,88730.0,0.43091545]
[1769355267319,0.01126862,88742.0,88731.0,0.43091545]
[1769355267525,0.01126849,88743.0,88731.0,0.43091545]
[1769355268068,0.01126836,88744.0,88731.0,0.43091545]
[1769355268993,0.01126849,88743.0,88731.0,0.43091545]
[1769355269195,0.01126836,88744.0,88731.0,0.43091545]
[1769355270914,0.01126862,88742.0,88731.0,0.43091545]
[1769355271125,0.01126849,88743.0,88731.0,0.43091545]
[1769355271327,0.01126836,88744.0,88731.0,0.43091545]
[1769355271894,0.01126824,88745.0,88731.0,0.43091545]
[1769355272488,0.01126811,88746.0,88731.0,0.43091545]
[1769355272687,0.01126824,88745.0,88731.0,0.43091545]
[1769355272885,0.01126811,88746.0,88731.0,0.43091545]
[1769355273302,0.01126824,88745.0,88731.0,0.43075568]
[1769355273502,0.01126811,88746.0,88731.0,0.43075568]
[1769355274531,0.01126824,88745.0,88731.0,0.43075568]
[1769355274783,0.01126849,88743.0,88731.0,0.43075568]
[1769355274991,0.01126824,88745.0,88731.0,0.43075568]
[1769355275300,0.01126836,88744.0,88731.0,0.43075568]
[1769355275485,0.01126849,88743.0,88731.0,0.43075568]
[1769355276052,0.01126836,88744.0,88731.0,0.43075568]
[1769355276455,0.01126836,88744.0,88731.0,0.42474381]
[1769355277274,0.01126849,88743.0,88731.0,0.42474381]
[1769355278499,0.01126862,88742.0,88731.0,0.42474381]
[1769355278673,0.01126862,88742.0,88731.0,0.4230676]
[1769355278881,0.01126862,88742.0,88731.0,0.42093095]
[1769355279324,0.01126887,88740.0,88731.0,0.42093095]
[1769355279513,0.01126874,88741.0,88731.0,0.42093095]
[1769355279716,0.01126862,88742.0,88731.0,0.42093095]
[1769355279916,0.01126874,88741.0,88731.0,0.42077118]
[1769355280144,0.01126887,88740.0,88731.0,0.42077118]
[1769355280329,0.01126874,88741.0,88731.0,0.42077118]
[1769355280876,0.01126887,88740.0,88731.0,0.42077118]
[1769355281119,0.01126938,88736.0,88723.0,0.01126836]
[1769355281325,0.01126938,88736.0,88729.0,0.1732]
[1769355281530,0.01126938,88736.0,88719.0,0.03383299]
[1769355281531,0.02118496,88729.0,88719.0,0.03383299]
[1769355281679,0.01127039,88728.0,88715.0,0.59868882]
[1769355282117,0.58897116,88729.0,88715.0,0.59868882]
[1769355282538,0.01127039,88728.0,88715.0,0.59868882]
[1769355282834,0.01127052,88727.0,88716.0,0.00062288]
[1769355283056,0.01127039,88728.0,88716.0,0.00062288]
[1769355283300,0.57770089,88729.0,88716.0,0.00062288]
[1769355284405,0.39826364,88732.0,88716.0,0.00062288]
[1769355284792,0.001,88729.0,88716.0,0.00062288]
[1769355285172,0.39826364,88732.0,88716.0,0.00062288]
[1769355285575,0.39926364,88732.0,88716.0,0.00062288]
[1769355288035,0.39826364,88732.0,88716.0,0.00062288]
[1769355288738,0.39926364,88732.0,88716.0,0.00062288]
[1769355289722,0.01127001,88731.0,88716.0,0.00062288]
[1769355290142,0.01127014,88730.0,88716.0,0.00062288]
[1769355290617,0.41053353,88732.0,88716.0,0.00062288]
[1769355290820,0.39926364,88732.0,88716.0,0.00062288]
[1769355291024,0.97596453,88732.0,88716.0,0.00062288]
[1769355292267,0.97696453,88732.0,88716.0,0.00062288]
[1769355293113,0.97696453,88732.0,88717.0,0.42548882]
[1769355293114,0.57870089,88732.0,88717.0,0.42548882]
[1769355293471,0.57770089,88732.0,88717.0,0.42548882]
[1769355293852,0.57870089,88732.0,88717.0,0.42548882]
[1769355294250,0.57770089,88732.0,88717.0,0.42548882]
[1769355294453,0.59675377,88732.0,88717.0,0.42548882]
[1769355294659,0.57770089,88732.0,88717.0,0.42548882]
[1769355294856,0.57770089,88732.0,88713.0,0.04512]
[1769355294857,0.01127116,88722.0,88713.0,0.04512]
[1769355295060,0.01127116,88722.0,88685.0,0.28230066]
[1769355295061,0.00991469,88717.0,88691.0,0.17324]
[1769355295264,0.00991469,88717.0,88698.0,0.63962086]
[1769355295265,0.39826364,88716.0,88698.0,0.63962086]
[1769355295625,0.39826364,88716.0,88700.0,0.63962086]
[1769355295914,0.39826364,88716.0,88700.0,0.42548882]
[1769355296228,0.41731652,88716.0,88701.0,0.63946109]
[1769355296389,0.39826364,88716.0,88701.0,0.63946109]
[1769355296952,0.39826364,88716.0,88701.0,0.63930134]
[1769355300699,0.39826364,88723.0,88702.0,0.42548882]
[1769355300902,0.39826364,88722.0,88703.0,0.63962086]
[1769355302047,0.39926364,88722.0,88703.0,0.63962086]
[1769355303687,0.39826364,88722.0,88703.0,0.63962086]
[1769355304023,0.39926364,88722.0,88703.0,0.63962086]
[1769355304472,1.05004011,88722.0,88703.0,0.63962086]
[1769355304648,0.01905288,88721.0,88703.0,0.63962086]
[1769355304873,1.05004011,88722.0,88703.0,0.63962086]
[1769355306076,1.04904011,88722.0,88703.0,0.63962086]
[1769355307339,0.39826364,88722.0,88703.0,0.63962086]
[1769355307539,0.03384222,88724.0,88707.0,0.59611153]
[1769355307770,0.0001,88732.0,88703.0,0.59611153]
[1769355307993,0.03383966,88729.0,88705.0,0.59611153]
[1769355308242,0.01674405,88732.0,88708.0,0.40012757]
[1769355308412,0.01674405,88732.0,88700.0,0.30285127]
[1769355308413,0.03383966,88731.0,88711.0,0.59611153]
[1769355308614,0.001,88722.0,88714.0,0.40012757]
[1769355308903,0.001,88722.0,88715.0,0.59611153]
[1769355309060,0.05058371,88732.0,88715.0,0.59611153]
[1769355310163,0.01674405,88732.0,88715.0,0.59611153]
[1769355316197,1.04511887,88731.0,88714.0,0.40012757]
[1769355316379,0.40951851,88730.0,88714.0,0.40012757]
[1769355317252,0.42078865,88730.0,88714.0,0.40012757]
[1769355317460,0.42078865,88730.0,88711.0,0.60329125]
[1769355317667,0.40951851,88727.0,88711.0,0.60329125]
[1769355317869,0.21318589,88727.0,88711.0,0.60329125]
[1769355324733,0.0001,88732.0,88714.0,0.4050254]
[1769355324958,0.0001,88732.0,88716.0,0.4050254]
[1769355325190,0.0001,88732.0,88717.0,1.00831665]
[1769355325392,0.0001,88732.0,88718.0,0.60329125]
[1769355328543,0.0011,88732.0,88718.0,0.60329125]
[1769355328943,0.0001,88732.0,88718.0,0.60329125]
[1769355330522,0.0011,88732.0,88718.0,0.60329125]
[1769355331172,0.0011,88732.0,88720.0,0.60329125]
[1769355331451,0.0011,88732.0,88725.0,0.4050254]
[1769355331679,0.0001,88732.0,88726.0,1.00831665]
[1769355331851,0.01681785,88743.0,88720.0,0.29157732]
[1769355331852,0.0001738,88743.0,88720.0,0.29157732]
[1769355332152,0.0001738,88743.0,88726.0,0.4050254]
[1769355332395,0.0001738,88743.0,88727.0,1.00831665]
[1769355332776,0.0001738,88743.0,88727.0,1.00845857]
[1769355336306,0.01144229,88743.0,88727.0,1.00845857]
[1769355336604,0.02808634,88743.0,88727.0,1.00845857]
[1769355337130,0.01681785,88743.0,88727.0,1.00845857]
[1769355338263,0.01781785,88743.0,88727.0,1.00845857]
[1769355339283,0.01681785,88743.0,88728.0,0.04944756]
[1769355339669,0.01781785,88743.0,88727.0,1.00845857]
[1769355340077,0.0011738,88743.0,88727.0,0.40516732]
[1769355340244,0.0011738,88743.0,88727.0,1.02771951]
[1769355341064,0.0001738,88743.0,88727.0,0.00014192]
[1769355341274,0.0001738,88743.0,88729.0,0.62255219]
[1769355341275,0.0011738,88743.0,88729.0,0.62255219]
[1769355341609,0.0001738,88743.0,88729.0,0.62255219]
[1769355345334,1.28596687,88747.0,88729.0,0.62255219]
[1769355345335,1.0983038,88747.0,88730.0,0.0706877]
[1769355345906,0.067608,88747.0,88730.0,0.0706877]
[1769355346122,1.01005064,88746.0,88730.0,0.0706877]
[1769355346320,0.01126824,88745.0,88730.0,0.0706877]
[1769355346729,1.01005064,88746.0,88730.0,0.0706877]
[1769355347131,1.01005064,88746.0,88731.0,0.11009584]
[1769355347132,0.40947016,88746.0,88731.0,0.11009584]
[1769355347418,0.001,88747.0,88731.0,0.62255219]
[1769355347618,0.001,88747.0,88733.0,0.62255219]
[1769355347822,0.40947016,88751.0,88733.0,1.03012874]
[1769355348045,0.001,88746.0,88733.0,1.03012874]
[1769355348246,0.001,88746.0,88733.0,1.1090689]
[1769355348631,1.01005064,88749.0,88733.0,1.03012874]
[1769355349058,1.02131837,88749.0,88733.0,1.03012874]
[1769355349260,0.01126811,88746.0,88733.0,0.40757655]
[1769355349476,0.01126811,88746.0,88730.0,0.0706877]
[1769355349676,0.01126811,88746.0,88728.0,1.03012874]
[1769355349889,0.61184846,88747.0,88728.0,1.03012874]
[1769355350501,0.60058048,88747.0,88728.0,1.03012874]
[1769355351302,0.60158048,88747.0,88728.0,1.03012874]
[1769355351627,0.60058048,88747.0,88728.0,1.03012874]
[1769355351967,0.61184846,88747.0,88728.0,1.03012874]
[1769355352160,0.61184846,88747.0,88728.0,0.40757655]
[1769355352386,0.60058048,88747.0,88729.0,0.62255219]
[1769355354926,0.60058048,88747.0,88729.0,1.03012874]
[1769355355242,0.60058048,88747.0,88729.0,1.13315581]
[1769355356204,0.61184846,88747.0,88729.0,1.13315581]
[1769355356339,0.60058048,88747.0,88729.0,1.13315581]
[1769355356540,0.61284846,88747.0,88729.0,1.13315581]
[1769355356859,0.01126811,88746.0,88729.0,1.13315581]
[1769355357039,0.6115281,88747.0,88729.0,1.13315581]
[1769355357249,0.6118313,88747.0,88729.0,1.13315581]
[1769355357450,1.02230146,88747.0,88729.0,1.13315581]
[1769355357868,1.02130146,88747.0,88729.0,1.13315581]
[1769355358274,1.02230146,88747.0,88730.0,0.07857834]
[1769355358697,1.01103348,88747.0,88730.0,0.07857834]
[1769355358911,1.01071315,88747.0,88730.0,0.07857834]
[1769355359515,1.00971315,88747.0,88730.0,0.07857834]
[1769355359745,0.01126811,88746.0,88730.0,0.07857834]
[1769355359897,0.01126824,88745.0,88730.0,0.07857834]
[1769355360093,0.01126824,88745.0,88729.0,1.13315581]
[1769355360415,0.01157144,88745.0,88729.0,1.13315581]
[1769355360625,0.01126849,88743.0,88729.0,1.13315581]
[1769355360829,0.01126849,88743.0,88729.0,1.03012874]
[1769355361251,0.01157169,88743.0,88729.0,1.03012874]
[1769355361660,0.0003032,88743.0,88729.0,1.03012874]
[1769355362071,0.0003032,88743.0,88731.0,0.62255219]
[1769355362277,0.0003032,88743.0,88734.0,0.40757655]
[1769355363364,0.0003032,88743.0,88733.0,0.62255219]
[1769355363734,0.0003032,88743.0,88729.0,0.39365352]
[1769355370745,0.01126862,88742.0,88729.0,0.39365352]
[1769355371022,0.65206246,88743.0,88729.0,0.39365352]
[1769355371228,0.66333095,88743.0,88729.0,0.39365352]
[1769355371745,0.65206246,88743.0,88729.0,0.39365352]
[1769355373310,0.65306246,88743.0,88729.0,0.39365352]
[1769355374779,0.65206246,88743.0,88729.0,0.39365352]
[1769355375005,0.0003032,88743.0,88729.0,0.39365352]
[1769355375397,0.0003032,88743.0,88729.0,0.99667249]
[1769355375898,0.39120112,88745.0,88729.0,0.99667249]
[1769355377199,0.39120112,88745.0,88729.0,0.39365352]
[1769355377401,0.39120112,88745.0,88729.0,0.99667249]
[1769355377923,0.39120112,88745.0,88729.0,1.02627656]
[1769355378425,0.60630837,88744.0,88728.0,0.1732]
[1769355378632,0.37611634,88741.0,88728.0,0.1732]
[1769355378848,0.60630837,88740.0,88728.0,0.1732]
[1769355379273,0.37611634,88741.0,88728.0,0.1732]
[1769355379554,0.60630837,88745.0,88728.0,0.1732]
[1769355380796,0.60630837,88745.0,88728.0,0.22955087]
[1769355384395,0.60630837,88745.0,88728.0,0.1732]
[1769355389930,0.37611634,88746.0,88729.0,0.99268376]
[1769355390293,0.19946552,88746.0,88729.0,0.60301897]
[1769355390510,0.19946552,88746.0,88730.0,0.99268376]
[1769355390717,0.61757597,88750.0,88730.0,0.99268376]
[1769355390718,0.01126773,88749.0,88730.0,0.99268376]
[1769355390917,0.01126773,88749.0,88731.0,0.11160278]
[1769355391119,0.01126785,88748.0,88731.0,0.11160278]
[1769355391508,0.60630837,88748.0,88731.0,0.11160278]
[1769355392567,0.45143886,88748.0,88731.0,0.11160278]
[1769355392776,0.45143886,88748.0,88732.0,0.11160278]
[1769355393570,0.01126798,88747.0,88732.0,0.11160278]
[1769355394764,0.44017101,88748.0,88732.0,0.11160278]
[1769355395122,0.001,88747.0,88732.0,0.11160278]
[1769355396777,0.001,88747.0,88728.0,0.1732]
[1769355396982,0.51636171,88744.0,88728.0,0.1732]
[1769355408578,0.51636171,88744.0,88728.0,0.57465733]
[1769355410908,0.30889571,88744.0,88728.0,0.57465733]
[1769355415447,0.30889571,88744.0,88728.0,1.19310311]
[1769355415780,0.30889571,88744.0,88729.0,0.02797739]
[1769355417257,0.32223772,88752.0,88732.0,0.61844578]
[1769355417459,0.32223772,88752.0,88729.0,0.05051793]
[1769355417460,0.01141567,88751.0,88734.0,1.01990311]
[1769355417665,0.0001482,88751.0,88734.0,1.01990311]
[1769355417859,0.37763393,88751.0,88734.0,1.01990311]
[1769355418086,0.6884561,88750.0,88735.0,0.04530771]
[1769355418702,0.6997237,88750.0,88735.0,0.04530771]
[1769355419516,0.01126773,88749.0,88735.0,0.04530771]
[1769355419876,0.01126785,88748.0,88735.0,0.04530771]
[1769355420560,0.01126798,88747.0,88735.0,0.04530771]
[1769355420760,0.01126785,88748.0,88729.0,1.0478805]
[1769355420964,0.69972383,88749.0,88729.0,1.0478805]
[1769355421384,0.01126811,88746.0,88729.0,1.0478805]
[1769355421586,0.31097037,88743.0,88729.0,0.40145733]
[1769355421791,0.01126862,88742.0,88728.0,0.1732]
[1769355422195,0.01126938,88736.0,88729.0,0.1732]
[1769355422691,0.01126925,88737.0,88729.0,0.1732]
[1769355423221,0.01126912,88738.0,88729.0,0.1732]
[1769355423782,0.001,88737.0,88729.0,0.1732]
[1769355425067,0.31097037,88739.0,88729.0,0.1732]
[1769355425265,0.32223937,88739.0,88729.0,0.1732]
[1769355425443,0.01226912,88738.0,88729.0,0.1732]
[1769355425968,0.01126912,88738.0,88729.0,0.1732]
[1769355426731,0.01126963,88734.0,88727.0,0.00014192]
[1769355427150,0.01126951,88735.0,88727.0,0.00014192]
[1769355427359,0.70032638,88736.0,88727.0,0.00014192]
[1769355428007,0.50812567,88736.0,88727.0,0.00014192]
[1769355429382,0.49685629,88736.0,88727.0,0.00014192]
[1769355429804,0.50812567,88736.0,88727.0,0.00014192]
[1769355430181,0.49685629,88736.0,88727.0,0.00014192]
[1769355430370,0.50812567,88736.0,88727.0,0.00014192]
[1769355431179,0.49685629,88736.0,88727.0,0.00014192]
[1769355431594,0.01126951,88735.0,88727.0,0.00014192]
[1769355431795,0.50812567,88736.0,88727.0,0.00014192]
[1769355431997,0.01126951,88735.0,88727.0,0.00014192]
[1769355432203,0.50812567,88736.0,88727.0,0.00014192]
[1769355432402,0.01126951,88735.0,88727.0,0.00014192]
[1769355432698,0.50812567,88736.0,88727.0,0.00014192]
[1769355432899,0.01126951,88735.0,88727.0,0.00014192]
[1769355433064,0.01126989,88732.0,88727.0,0.00014192]
[1769355433278,0.01126976,88733.0,88727.0,0.00014192]
[1769355433482,0.01126963,88734.0,88727.0,0.00014192]
[1769355433686,0.01126976,88733.0,88727.0,0.00014192]
[1769355434061,0.01126963,88734.0,88727.0,0.00014192]
[1769355435030,0.06761789,88734.0,88727.0,0.00014192]
[1769355435418,0.01126976,88733.0,88727.0,0.00014192]
[1769355435833,0.01126963,88734.0,88727.0,0.00014192]
[1769355436157,0.01126989,88732.0,88727.0,0.00014192]
[1769355436692,0.0563515,88729.0,88727.0,0.00014192]
[1769355436867,0.01127014,88730.0,88727.0,0.00014192]
[1769355438575,0.0676209,88730.0,88727.0,0.00014192]
[1769355438778,0.0676209,88730.0,88716.0,0.04512]
[1769355438779,0.01127141,88720.0,88710.0,0.61041826]
[1769355438977,8.001e-05,88720.0,88709.0,0.04512]
[1769355440498,8.001e-05,88720.0,88709.0,0.65553826]
[1769355446631,0.01135142,88720.0,88709.0,0.65553826]
[1769355447633,0.01127154,88719.0,88709.0,0.65553826]
[1769355448850,0.01135142,88720.0,88709.0,0.65553826]
[1769355449050,8.001e-05,88720.0,88709.0,0.65553826]
[1769355449250,0.01135142,88720.0,88709.0,0.65553826]
[1769355450825,0.01127154,88719.0,88709.0,0.65553826]
[1769355451192,8.001e-05,88720.0,88709.0,0.65553826]
[1769355453177,8.001e-05,88720.0,88709.0,0.61041826]
[1769355454119,1.03652896,88730.0,88710.0,0.39641352]
[1769355454422,1.04784647,88730.0,88706.0,0.65200314]
[1769355454600,0.01127039,88728.0,88709.0,0.39641352]
[1769355454924,0.01127027,88729.0,88710.0,1.04841666]
[1769355455099,0.01127039,88728.0,88710.0,1.04841666]
[1769355456128,0.01127052,88727.0,88710.0,1.04841666]
[1769355456330,0.01127078,88725.0,88710.0,1.04841666]
[1769355456525,0.01127065,88726.0,88710.0,1.04841666]
[1769355456730,0.01127078,88725.0,88710.0,1.04841666]
[1769355456929,0.01127052,88727.0,88710.0,1.04841666]
[1769355457821,0.01127065,88726.0,88710.0,1.04841666]
[1769355458263,0.01127039,88728.0,88710.0,1.04841666]
[1769355458503,0.01127052,88727.0,88710.0,1.04841666]